bitfinex-derivatives/quotes_SOLF0:USTF0_20260207
["timestamp","ask_amount","ask_price","bid_price","bid_amount"]
[1770474474442,30.79087851,86.229,86.17,32.2056246]
[1770474475244,30.79087851,86.229,86.178,32.2056246]
[1770474476639,30.79087851,86.244,86.178,32.2056246]
[1770474477734,30.79087851,86.244,86.18,32.2056246]
[1770474481642,30.79087851,86.244,86.187,32.2056246]
[1770474482645,30.79087851,86.243,86.172,32.2056246]
[1770474483249,30.79087851,86.243,86.174,32.2056246]
[1770474484944,30.79087851,86.243,86.182,10.4542]
[1770474486149,30.79087851,86.243,86.182,43.47706297]
[1770474486749,32.67903373,86.241,86.168,33.02286297]
[1770474487849,32.67903373,86.238,86.18,10.4544]
[1770474488946,32.67903373,86.236,86.18,10.4544]
[1770474489954,34.77,86.267,86.139,33.02286297]
[1770474489955,32.67903373,86.233,86.139,33.02286297]
[1770474490847,32.11684058,86.207,86.148,32.95946566]
[1770474491452,34.77,86.239,86.097,34.77]
[1770474491453,32.11684058,86.203,86.15,32.95946566]
[1770474492259,10.4523,86.199,86.15,32.95946566]
[1770474492558,32.11684058,86.198,86.15,32.95946566]
[1770474493263,32.11684058,86.212,86.15,32.95946566]
[1770474494962,32.11684058,86.208,86.15,32.95946566]
[1770474495660,32.11684058,86.206,86.15,32.95946566]
[1770474496858,32.11684058,86.252,86.15,32.95946566]
[1770474497168,32.11684058,86.251,86.15,32.95946566]
[1770474497865,10.4501,86.217,86.15,32.95946566]
[1770474498565,10.4508,86.211,86.15,32.95946566]
[1770474498961,32.11684058,86.216,86.15,32.95946566]
[1770474499571,32.11684058,86.254,86.15,32.95946566]
[1770474501064,32.11684058,86.238,86.16,32.95946566]
[1770474501662,32.11684058,86.235,86.166,32.95946566]
[1770474502266,20.8808,86.297,86.177,32.95946566]
[1770474502267,32.11684058,86.248,86.177,32.95946566]
[1770474503776,313.71798186,86.275,86.177,32.95946566]
[1770474503777,32.11684058,86.241,86.177,32.95946566]
[1770474505372,32.11684058,86.241,86.179,32.95946566]
[1770474506868,32.11684058,86.241,86.181,32.95946566]
[1770474507975,32.11684058,86.241,86.187,32.95946566]
[1770474509474,32.11684058,86.241,86.19,32.95946566]
[1770474509977,32.11684058,86.241,86.193,32.95946566]
[1770474511075,32.11684058,86.26,86.193,32.95946566]
[1770474512885,32.11684058,86.26,86.213,32.95946566]
[1770474513683,32.11684058,86.26,86.216,10.4501]
[1770474513884,32.11684058,86.26,86.216,43.40956566]
[1770474514180,32.11684058,86.26,86.163,48.89010104]
[1770474514181,32.11684058,86.26,86.217,32.95946566]
[1770474514885,32.11684058,86.26,86.217,43.40936566]
[1770474519883,32.11684058,86.26,86.217,32.95946566]
[1770474520086,32.11684058,86.26,86.228,10.4486]
[1770474520589,32.11684058,86.26,86.217,43.40936566]
[1770474520985,30.35278174,86.275,86.218,31.22835126]
[1770474521386,30.35278174,86.275,86.223,31.22835126]
[1770474526193,30.35278174,86.268,86.223,31.22835126]
[1770474527493,40.79528174,86.279,86.223,31.22835126]
[1770474527691,30.35278174,86.278,86.223,31.22835126]
[1770474527996,30.35278174,86.272,86.223,31.22835126]
[1770474528994,10.4447,86.261,86.223,31.22835126]
[1770474529899,30.35278174,86.26,86.223,31.22835126]
[1770474533204,10.4454,86.256,86.223,31.22835126]
[1770474533403,30.35278174,86.26,86.223,31.22835126]
[1770474539594,10.4443,86.265,86.223,31.22835126]
[1770474541193,30.35278174,86.261,86.211,31.22835126]
[1770474542702,10.4449,86.259,86.211,31.22835126]
[1770474542896,30.35278174,86.258,86.198,31.22835126]
[1770474544813,30.35278174,86.253,86.2,31.22835126]
[1770474545706,30.35278174,86.251,86.2,31.22835126]
[1770474547807,14.30670211,86.274,86.2,31.22835126]
[1770474547808,28.7788993,86.249,86.2,31.22835126]
[1770474548604,21.45690515,86.279,86.158,20.9143]
[1770474548605,28.7788993,86.261,86.207,31.31780599]
[1770474549803,28.7788993,86.261,86.209,31.31780599]
[1770474555211,30.57217484,86.259,86.209,31.31780599]
[1770474555411,30.57217484,86.257,86.209,31.31780599]
[1770474555614,30.57217484,86.255,86.209,31.31780599]
[1770474555816,30.57217484,86.253,86.209,31.31780599]
[1770474556005,30.57217484,86.251,86.209,31.31780599]
[1770474556204,30.57217484,86.249,86.209,31.31780599]
[1770474556514,39.12574805,86.248,86.209,31.31780599]
[1770474556713,8.55357321,86.247,86.209,31.31780599]
[1770474556915,8.55357321,86.246,86.209,31.31780599]
[1770474557217,8.55357321,86.245,86.209,31.31780599]
[1770474557519,8.55357321,86.244,86.209,31.31780599]
[1770474557817,8.55357321,86.243,86.209,31.31780599]
[1770474558118,8.55357321,86.242,86.209,31.31780599]
[1770474558309,8.55357321,86.241,86.209,31.31780599]
[1770474558507,8.55357321,86.24,86.209,31.31780599]
[1770474558718,30.57217484,86.26,86.209,31.31780599]
[1770474558918,39.12690048,86.259,86.209,31.31780599]
[1770474559120,8.55472564,86.258,86.209,31.31780599]
[1770474559312,8.55472564,86.257,86.209,31.31780599]
[1770474559513,30.57217484,86.255,86.209,31.31780599]
[1770474559712,8.55472564,86.254,86.212,31.11306391]
[1770474559914,8.55472564,86.253,86.212,31.11306391]
[1770474560114,30.57217484,86.251,86.212,31.11306391]
[1770474560314,8.55472564,86.25,86.212,31.11306391]
[1770474560514,30.57217484,86.248,86.2,31.11306391]
[1770474560815,30.57217484,86.244,86.2,31.11306391]
[1770474561013,8.55472564,86.243,86.2,31.11306391]
[1770474561214,30.57217484,86.241,86.2,31.11306391]
[1770474561413,30.57217484,86.239,86.2,31.11306391]
[1770474561620,8.55472564,86.238,86.2,31.11306391]
[1770474561914,8.55472564,86.237,86.2,31.11306391]
[1770474562112,8.55472564,86.236,86.2,31.11306391]
[1770474562313,8.55472564,86.235,86.2,31.11306391]
[1770474562516,8.55472564,86.234,86.2,31.11306391]
[1770474562717,8.55472564,86.233,86.2,31.11306391]
[1770474563018,8.55472564,86.232,86.2,31.11306391]
[1770474563215,8.55472564,86.231,86.2,31.11306391]
[1770474563414,8.55472564,86.23,86.2,31.11306391]
[1770474563616,8.55472564,86.229,86.2,31.11306391]
[1770474563812,8.55472564,86.228,86.2,31.11306391]
[1770474564013,8.55472564,86.227,86.2,31.11306391]
[1770474564210,30.57217484,86.239,86.2,31.11306391]
[1770474564519,30.57217484,86.237,86.179,31.11306391]
[1770474564720,30.57217484,86.235,86.179,31.11306391]
[1770474564922,30.57217484,86.233,86.179,31.11306391]
[1770474565116,39.122024,86.232,86.179,31.11306391]
[1770474565415,8.54984916,86.231,86.185,31.11306391]
[1770474565622,8.54984916,86.23,86.185,31.11306391]
[1770474565816,8.54984916,86.229,86.185,31.11306391]
[1770474566016,30.57217484,86.245,86.185,31.11306391]
[1770474566216,39.11977918,86.244,86.186,31.11306391]
[1770474566412,30.57217484,86.242,86.186,31.11306391]
[1770474566718,30.57217484,86.24,86.186,31.11306391]
[1770474566909,8.54760434,86.239,86.186,31.11306391]
[1770474567112,8.54760434,86.238,86.186,31.11306391]
[1770474567319,8.54760434,86.237,86.186,31.11306391]
[1770474567521,8.54760434,86.236,86.186,31.11306391]
[1770474567709,8.54760434,86.235,86.188,31.11306391]
[1770474568009,8.54760434,86.234,86.188,31.11306391]
[1770474568209,30.57217484,86.24,86.188,31.11306391]
[1770474568210,8.54760434,86.233,86.188,31.11306391]
[1770474568412,8.54760434,86.232,86.188,31.11306391]
[1770474568620,30.57217484,86.24,86.188,31.11306391]
[1770474568821,8.54545018,86.239,86.19,31.11306391]
[1770474569020,8.54545018,86.238,86.19,31.11306391]
[1770474569220,8.54545018,86.237,86.19,31.11306391]
[1770474569422,8.54545018,86.236,86.19,31.11306391]
[1770474569618,8.54545018,86.235,86.19,31.11306391]
[1770474569819,8.54545018,86.234,86.192,31.11306391]
[1770474570018,8.54545018,86.233,86.192,31.11306391]
[1770474570320,8.54545018,86.232,86.192,31.11306391]
[1770474570621,8.54545018,86.231,86.192,31.11306391]
[1770474570821,30.57217484,86.24,86.192,31.11306391]
[1770474571020,8.5463784,86.239,86.194,31.11306391]
[1770474571222,8.5463784,86.238,86.194,31.11306391]
[1770474571422,8.5463784,86.237,86.194,31.11306391]
[1770474571616,8.5463784,86.236,86.194,31.11306391]
[1770474571817,8.5463784,86.235,86.194,31.11306391]
[1770474572019,8.5463784,86.234,86.194,31.11306391]
[1770474572215,8.5463784,86.233,86.194,31.11306391]
[1770474572416,8.5463784,86.232,86.196,31.11306391]
[1770474572724,8.5463784,86.231,86.196,31.11306391]
[1770474572911,30.57217484,86.24,86.196,31.11306391]
[1770474573111,8.54642033,86.239,86.196,31.11306391]
[1770474573311,8.54642033,86.238,86.196,31.11306391]
[1770474573511,8.54642033,86.237,86.196,31.11306391]
[1770474573711,8.54642033,86.236,86.199,31.11306391]
[1770474573916,8.54642033,86.235,86.199,31.11306391]
[1770474574219,8.54642033,86.234,86.199,31.11306391]
[1770474574422,8.54642033,86.233,86.199,31.11306391]
[1770474574722,8.54642033,86.232,86.199,31.11306391]
[1770474574915,30.57217484,86.24,86.199,31.11306391]
[1770474574916,8.54642033,86.231,86.199,31.11306391]
[1770474575120,8.54642033,86.23,86.199,31.11306391]
[1770474575322,30.57217484,86.24,86.199,31.11306391]
[1770474575514,8.54576032,86.239,86.199,31.11306391]
[1770474575718,8.54576032,86.238,86.199,31.11306391]
[1770474575918,8.54576032,86.237,86.199,31.11306391]
[1770474576124,8.54576032,86.236,86.199,31.11306391]
[1770474576427,8.54576032,86.235,86.199,31.11306391]
[1770474576724,8.54576032,86.234,86.199,31.11306391]
[1770474576924,8.54576032,86.233,86.199,31.11306391]
[1770474577125,30.57217484,86.24,86.199,31.11306391]
[1770474577327,8.56128971,86.239,86.199,31.11306391]
[1770474577627,8.56128971,86.238,86.199,31.11306391]
[1770474577923,8.56128971,86.237,86.199,31.11306391]
[1770474578117,8.56128971,86.236,86.199,31.11306391]
[1770474578316,8.56128971,86.235,86.199,31.11306391]
[1770474578518,8.56128971,86.234,86.199,31.11306391]
[1770474578721,30.57217484,86.24,86.199,31.11306391]
[1770474579025,8.56144729,86.239,86.201,29.13832639]
[1770474579222,8.56144729,86.238,86.201,29.13832639]
[1770474579422,8.56144729,86.237,86.201,29.13832639]
[1770474579624,8.56144729,86.236,86.201,29.13832639]
[1770474579923,8.56144729,86.235,86.201,29.13832639]
[1770474580120,8.56144729,86.234,86.201,29.13832639]
[1770474580326,8.56200723,86.233,86.203,29.13832639]
[1770474580526,30.57217484,86.24,86.203,29.13832639]
[1770474580728,8.56200723,86.239,86.203,29.13832639]
[1770474580921,8.56200723,86.238,86.203,29.13832639]
[1770474581116,8.56200723,86.237,86.203,29.13832639]
[1770474581428,8.56200723,86.236,86.203,29.13832639]
[1770474581627,8.56200723,86.235,86.203,29.13832639]
[1770474581822,8.56200723,86.234,86.203,29.13832639]
[1770474582025,8.56200723,86.234,86.154,20.9151]
[1770474582026,7.23e-06,86.233,86.211,29.13832639]
[1770474582224,28.79925808,86.25,86.211,29.13832639]
[1770474583829,28.79925808,86.25,86.216,10.4501]
[1770474591330,28.79925808,86.25,86.211,29.13832639]
[1770474593642,28.79925808,86.247,86.199,29.13832639]
[1770474594143,28.79925808,86.245,86.199,29.13832639]
[1770474594337,28.79925808,86.243,86.199,29.13832639]
[1770474594540,28.79925808,86.241,86.199,29.13832639]
[1770474594742,28.79925808,86.239,86.199,29.13832639]
[1770474594938,28.79925808,86.237,86.199,29.13832639]
[1770474595130,8.527727,86.236,86.199,29.13832639]
[1770474595334,10.83270319,86.247,86.154,20.9151]
[1770474595335,8.527727,86.235,86.205,29.13832639]
[1770474595547,28.79925808,86.254,86.205,29.13832639]
[1770474596347,28.79925808,86.247,86.195,29.13832639]
[1770474596643,28.79925808,86.246,86.195,29.13832639]
[1770474596848,28.79925808,86.242,86.15,29.13832639]
[1770474597140,28.79925808,86.214,86.15,29.13832639]
[1770474597543,28.79925808,86.214,86.159,29.13832639]
[1770474600055,28.79925808,86.212,86.159,29.13832639]
[1770474600249,28.79925808,86.199,86.129,29.13832639]
[1770474600449,28.79925808,86.194,86.129,29.13832639]
[1770474600650,28.79925808,86.19,86.129,29.13832639]
[1770474601154,28.79925808,86.187,86.129,29.13832639]
[1770474601348,28.79925808,86.198,86.129,29.13832639]
[1770474601851,28.79925808,86.198,86.136,29.13832639]
[1770474603250,28.79925808,86.198,86.138,29.13832639]
[1770474604555,28.79925808,86.196,86.138,29.13832639]
[1770474607454,26.17082214,86.194,86.138,29.13832639]
[1770474609951,26.17082214,86.194,86.141,10.4592]
[1770474610165,26.17082214,86.194,86.142,25.09935474]
[1770474612161,26.17082214,86.194,86.145,26.11637614]
[1770474613168,24.66098636,86.205,86.15,26.11637614]
[1770474613866,24.66098636,86.203,86.126,26.11637614]
[1770474614054,34.77,86.242,86.126,26.11637614]
[1770474614055,24.66098636,86.201,86.126,26.11637614]
[1770474614257,24.66098636,86.199,86.126,26.11637614]
[1770474614969,24.66098636,86.199,86.132,26.11637614]
[1770474615566,24.66098636,86.199,86.136,26.11637614]
[1770474616969,24.66098636,86.199,86.157,26.11637614]
[1770474617661,24.66098636,86.199,86.159,36.57337614]
[1770474618283,24.66098636,86.199,86.16,26.11637614]
[1770474618460,24.66098636,86.199,86.161,36.57317614]
[1770474620874,24.66098636,86.199,86.162,26.11637614]
[1770474621274,24.66098636,86.199,86.164,10.4564]
[1770474622172,24.66098636,86.219,86.175,10.455]
[1770474623569,24.66098636,86.219,86.182,10.4541]
[1770474626772,24.66098636,86.219,86.169,26.11637614]
[1770474628376,24.66098636,86.219,86.17,10.4557]
[1770474628678,24.66098636,86.219,86.171,26.11637614]
[1770474635184,24.66098636,86.217,86.171,26.11637614]
[1770474636185,24.32262519,86.215,86.171,26.11637614]
[1770474638182,24.32262519,86.213,86.171,26.11637614]
[1770474639278,24.32262519,86.211,86.171,26.11637614]
[1770474641083,24.32262519,86.209,86.154,23.460074]
[1770474641291,24.32262519,86.204,86.154,23.460074]
[1770474641586,24.32262519,86.202,86.154,23.460074]
[1770474641787,24.32262519,86.2,86.154,23.460074]
[1770474642083,24.32262519,86.198,86.154,23.460074]
[1770474642287,24.32262519,86.196,86.154,23.460074]
[1770474642487,32.7827133,86.195,86.154,23.460074]
[1770474642683,8.46008811,86.194,86.154,23.460074]
[1770474642988,8.46008811,86.193,86.154,23.460074]
[1770474643181,24.32262519,86.195,86.154,23.460074]
[1770474643182,8.46008811,86.192,86.154,23.460074]
[1770474643485,24.32262519,86.195,86.154,23.460074]
[1770474643486,8.46008811,86.191,86.154,23.460074]
[1770474643687,8.46008811,86.19,86.154,23.460074]
[1770474643887,8.46008811,86.189,86.154,23.460074]
[1770474644088,24.32262519,86.187,86.131,23.460074]
[1770474644288,24.32262519,86.185,86.131,23.460074]
[1770474644485,32.7827133,86.184,86.131,23.460074]
[1770474644685,24.32262519,86.182,86.131,23.460074]
[1770474644885,8.46866046,86.181,86.131,23.460074]
[1770474645187,8.46866046,86.18,86.131,23.460074]
[1770474645485,24.32262519,86.182,86.131,23.460074]
[1770474645684,8.46847668,86.181,86.133,10.4602]
[1770474645883,32.79110187,86.18,86.134,23.460074]
[1770474646084,24.32262519,86.18,86.134,23.460074]
[1770474647389,8.46909773,86.179,86.134,23.460074]
[1770474647582,24.32262519,86.18,86.134,23.460074]
[1770474647583,8.46909773,86.178,86.134,23.460074]
[1770474647783,8.46909773,86.177,86.134,23.460074]
[1770474648085,8.46909773,86.176,86.134,23.460074]
[1770474648284,24.32262519,86.18,86.134,23.460074]
[1770474648479,8.46925027,86.179,86.134,23.460074]
[1770474648678,8.46925027,86.178,86.134,23.460074]
[1770474648891,8.46925027,86.177,86.134,23.460074]
[1770474649093,8.46925027,86.176,86.134,23.460074]
[1770474649291,24.32262519,86.18,86.134,23.460074]
[1770474649480,8.46923607,86.179,86.134,23.460074]
[1770474649685,8.46923607,86.178,86.137,23.460074]
[1770474649887,24.32262519,86.204,86.137,23.460074]
[1770474650486,24.32262519,86.204,86.162,23.460074]
[1770474650686,24.32262519,86.216,86.162,23.460074]
[1770474651688,24.32262519,86.216,86.165,23.460074]
[1770474652689,24.32262519,86.216,86.171,10.4555]
[1770474652889,24.32262519,86.216,86.172,23.460074]
[1770474653987,24.32262519,86.216,86.174,23.460074]
[1770474654691,24.32262519,86.216,86.179,23.460074]
[1770474655387,24.32262519,86.216,86.181,23.460074]
[1770474656792,24.32262519,86.216,86.182,10.4542]
[1770474657295,24.32262519,86.229,86.19,10.4533]
[1770474657497,24.32262519,86.24,86.191,23.460074]
[1770474658689,24.32262519,86.24,86.192,10.453]
[1770474658998,24.32262519,86.24,86.193,23.460074]
[1770474659996,24.32262519,86.24,86.203,10.4517]
[1770474660399,24.32262519,86.266,86.204,23.460074]
[1770474661696,24.32262519,86.266,86.206,10.4513]
[1770474661896,24.32262519,86.266,86.207,23.460074]
[1770474662694,24.32262519,86.264,86.173,23.460074]
[1770474663095,24.32262519,86.262,86.173,23.460074]
[1770474663696,10.4463,86.248,86.185,10.4539]
[1770474663896,24.32262519,86.247,86.186,23.460074]
[1770474664301,24.32262519,86.239,86.176,10.4549]
[1770474664503,24.32262519,86.239,86.177,23.460074]
[1770474665202,24.32262519,86.239,86.179,23.460074]
[1770474665696,24.32262519,86.237,86.179,23.460074]
[1770474666602,21.31404779,86.235,86.17,22.8479411]
[1770474667108,21.31404779,86.223,86.17,22.8479411]
[1770474668707,21.31404779,86.215,86.17,22.8479411]
[1770474671107,21.42454346,86.231,86.17,22.8479411]
[1770474673313,10.447,86.242,86.173,22.26544995]
[1770474673705,21.42454346,86.244,86.185,22.26544995]
[1770474674810,21.42454346,86.241,86.185,22.26544995]
[1770474676414,21.42454346,86.24,86.185,22.26544995]
[1770474678004,21.42454346,86.24,86.132,22.26544995]
[1770474679517,21.42454346,86.228,86.146,22.26544995]
[1770474680716,21.42454346,86.228,86.149,22.26544995]
[1770474681720,21.42454346,86.228,86.154,22.26544995]
[1770474682719,21.42454346,86.228,86.157,22.26544995]
[1770474683320,21.42454346,86.228,86.161,22.26544995]
[1770474683716,10.80754417,86.253,86.161,22.26544995]
[1770474683922,21.42454346,86.252,86.183,22.26544995]
[1770474685820,21.42454346,86.252,86.187,22.26544995]
[1770474686627,21.42454346,86.252,86.19,22.26544995]
[1770474687819,21.42454346,86.252,86.193,22.26544995]
[1770474689728,21.42454346,86.252,86.198,22.26544995]
[1770474690425,21.42454346,86.252,86.155,14.32641474]
[1770474690426,21.42454346,86.252,86.202,22.26544995]
[1770474692723,21.42454346,86.252,86.158,14.32641474]
[1770474692724,21.42454346,86.252,86.204,22.26544995]
[1770474693322,21.42454346,86.252,86.202,10.4518]
[1770474695326,21.42454346,86.252,86.203,22.26544995]
[1770474695930,21.42454346,86.252,86.205,10.4514]
[1770474697417,10.4435,86.271,86.205,10.4514]
[1770474697418,20.85162556,86.249,86.205,10.4514]
[1770474697622,20.85162556,86.248,86.196,10.4524]
[1770474697827,20.85162556,86.247,86.196,10.4524]
[1770474698133,20.85162556,86.247,86.179,21.77210758]
[1770474698927,20.85162556,86.247,86.143,20.918]
[1770474698928,20.85162556,86.247,86.19,21.77210758]
[1770474699729,20.85162556,86.247,86.194,21.77210758]
[1770474699935,10.80754417,86.259,86.194,21.77210758]
[1770474699936,20.85162556,86.259,86.194,21.77210758]
[1770474700726,20.85162556,86.259,86.2,21.77210758]
[1770474700927,20.85162556,86.258,86.2,21.77210758]
[1770474701331,20.85162556,86.253,86.164,21.77210758]
[1770474701530,10.80754417,86.237,86.164,21.77210758]
[1770474701734,20.85162556,86.235,86.164,21.77210758]
[1770474701930,20.85162556,86.233,86.164,21.77210758]
[1770474702135,20.85162556,86.231,86.164,21.77210758]
[1770474702335,20.85162556,86.229,86.164,21.77210758]
[1770474702535,20.85162556,86.227,86.164,21.77210758]
[1770474702838,20.85162556,86.225,86.168,21.77210758]
[1770474703036,20.85162556,86.223,86.168,21.77210758]
[1770474703240,20.85162556,86.221,86.168,21.77210758]
[1770474703440,20.85162556,86.219,86.168,21.77210758]
[1770474703638,20.85162556,86.217,86.168,21.77210758]
[1770474703843,10.80754417,86.226,86.168,21.77210758]
[1770474703844,20.85162556,86.215,86.168,21.77210758]
[1770474704051,20.85162556,86.213,86.168,21.77210758]
[1770474704238,20.85162556,86.211,86.168,21.77210758]
[1770474704439,20.85162556,86.209,86.168,21.77210758]
[1770474704640,20.85162556,86.207,86.168,21.77210758]
[1770474704836,20.85162556,86.205,86.14,21.77210758]
[1770474705036,20.85162556,86.203,86.14,21.77210758]
[1770474705246,20.85162556,86.201,86.14,21.77210758]
[1770474705542,20.85162556,86.199,86.14,21.77210758]
[1770474705740,20.85162556,86.197,86.14,21.77210758]
[1770474705935,20.85162556,86.195,86.14,21.77210758]
[1770474706137,20.85162556,86.193,86.14,21.77210758]
[1770474706336,20.85162556,86.191,86.14,21.77210758]
[1770474706541,20.85162556,86.189,86.127,21.77210758]
[1770474706746,20.85162556,86.187,86.127,21.77210758]
[1770474706946,20.85162556,86.185,86.127,21.77210758]
[1770474707146,20.85162556,86.183,86.127,21.77210758]
[1770474707347,20.85162556,86.181,86.127,21.77210758]
[1770474709549,8.54541448,86.18,86.114,21.77210758]
[1770474709849,20.85162556,86.178,86.114,21.77210758]
[1770474710049,20.85162556,86.176,86.114,21.77210758]
[1770474710252,21.45690515,86.211,86.114,21.77210758]
[1770474710253,20.85162556,86.174,86.114,21.77210758]
[1770474710446,20.85162556,86.172,86.114,21.77210758]
[1770474711251,20.85162556,86.172,86.122,465.16348218]
[1770474712752,20.85162556,86.17,86.108,21.77210758]
[1770474713055,20.85162556,86.168,86.108,21.77210758]
[1770474713256,20.85162556,86.166,86.108,21.77210758]
[1770474713554,20.85162556,86.163,86.108,21.77210758]
[1770474713856,21.45690515,86.207,86.096,446.72703642]
[1770474713857,31.30852556,86.161,86.096,446.72703642]
[1770474714155,20.85162556,86.159,86.096,446.72703642]
[1770474714348,10.80754417,86.178,86.096,446.72703642]
[1770474714349,20.85162556,86.154,86.096,446.72703642]
[1770474714555,20.85162556,86.152,86.096,446.72703642]
[1770474714855,20.85162556,86.15,86.096,446.72703642]
[1770474715154,10.4599,86.136,86.096,446.72703642]
[1770474715451,20.85162556,86.134,86.096,446.72703642]
[1770474715652,20.85162556,86.132,86.096,446.72703642]
[1770474716156,20.85162556,86.147,86.097,21.77210758]
[1770474716351,20.85162556,86.147,86.096,446.72703642]
[1770474716853,20.85162556,86.147,86.096,468.499144]
[1770474717249,20.85162556,86.147,86.099,21.77210758]
[1770474720362,20.85162556,86.163,86.099,21.77210758]
[1770474721662,20.85162556,86.176,86.099,21.77210758]
[1770474722661,20.85162556,86.174,86.099,21.77210758]
[1770474723450,8.5217408,86.211,86.103,21.77210758]
[1770474723665,20.85162556,86.21,86.103,21.77210758]
[1770474724866,20.85162556,86.197,86.112,21.77210758]
[1770474728558,20.85162556,86.197,86.113,20.77114534]
[1770474729764,20.85162556,86.197,86.119,20.77114534]
[1770474730670,20.85162556,86.197,86.122,21.10021764]
[1770474731760,20.85162556,86.197,86.097,2.02012579]
[1770474731761,20.85162556,86.197,86.123,21.10021764]
[1770474732468,20.91982923,86.195,86.123,21.10021764]
[1770474732664,20.91982923,86.195,86.096,446.72703642]
[1770474732863,20.91982923,86.193,86.096,446.72703642]
[1770474733063,20.91982923,86.17,86.097,21.10021764]
[1770474733670,20.91982923,86.168,86.097,21.10021764]
[1770474735266,20.91982923,86.168,86.096,446.72703642]
[1770474735461,20.91982923,86.162,86.096,446.72703642]
[1770474735661,8.48231456,86.161,86.096,446.72703642]
[1770474735864,20.91982923,86.16,86.096,446.72703642]
[1770474736060,20.91982923,86.15,86.096,446.72703642]
[1770474738569,20.91982923,86.15,86.096,467.82725406]
[1770474740766,20.91982923,86.148,86.096,467.82725406]
[1770474740972,20.91982923,86.148,86.097,21.10021764]
[1770474741172,20.91982923,86.191,86.097,21.10021764]
[1770474741367,20.91982923,86.189,86.097,21.10021764]
[1770474741573,20.91982923,86.187,86.097,21.10021764]
[1770474741765,20.91982923,86.185,86.097,21.10021764]
[1770474741967,20.91982923,86.183,86.097,21.10021764]
[1770474742166,20.91982923,86.181,86.097,21.10021764]
[1770474742367,20.91982923,86.179,86.097,21.10021764]
[1770474742568,10.4554,86.173,86.097,21.10021764]
[1770474742777,20.91982923,86.171,86.097,21.10021764]
[1770474742977,20.91982923,86.169,86.097,21.10021764]
[1770474743276,20.91982923,86.154,86.097,21.10021764]
[1770474745576,10.4579,86.152,86.097,21.10021764]
[1770474746178,31.37772923,86.152,86.097,21.10021764]
[1770474747075,10.4589,86.144,86.097,21.10021764]
[1770474749178,20.91982923,86.138,86.068,21.10021764]
[1770474749377,20.91982923,86.136,86.068,21.10021764]
[1770474749583,20.91982923,86.134,86.068,21.10021764]
[1770474749780,29.46101332,86.133,86.068,21.10021764]
[1770474749981,20.91982923,86.131,86.068,21.10021764]
[1770474750178,8.54275053,86.13,86.068,21.10021764]
[1770474750483,20.91982923,86.131,86.068,21.10021764]
[1770474750687,8.54215767,86.13,86.068,21.10021764]
[1770474750884,20.91982923,86.131,86.068,21.10021764]
[1770474751078,8.54215718,86.13,86.068,21.10021764]
[1770474751278,20.91982923,86.131,86.068,21.10021764]
[1770474751486,8.54236195,86.13,86.068,21.10021764]
[1770474751689,20.91982923,86.131,86.068,21.10021764]
[1770474751880,8.54236195,86.13,86.068,21.10021764]
[1770474752187,20.91982923,86.131,86.068,21.10021764]
[1770474752386,8.54201638,86.13,86.068,21.10021764]
[1770474752691,20.91982923,86.131,86.068,21.10021764]
[1770474752883,20.91982923,86.129,86.068,21.10021764]
[1770474753282,20.91982923,86.127,86.068,21.10021764]
[1770474753483,20.91982923,86.125,86.068,21.10021764]
[1770474753784,20.91982923,86.123,86.068,21.10021764]
[1770474753983,20.91982923,86.121,86.068,21.10021764]
[1770474754190,20.91982923,86.119,86.068,21.10021764]
[1770474754384,20.91982923,86.117,86.068,21.10021764]
[1770474754789,20.91982923,86.115,86.068,21.10021764]
[1770474755586,20.91982923,86.128,86.068,21.10021764]
[1770474756692,20.91982923,86.128,86.071,19.89075228]
[1770474757686,20.38451402,86.145,86.076,19.89075228]
[1770474757988,20.38451402,86.161,86.076,19.89075228]
[1770474758194,20.38451402,86.159,86.076,19.89075228]
[1770474758387,20.38451402,86.154,86.093,19.89075228]
[1770474758583,20.38451402,86.152,86.093,19.89075228]
[1770474758788,10.4583,86.149,86.093,19.89075228]
[1770474758991,20.38451402,86.147,86.093,19.89075228]
[1770474759193,20.38451402,86.145,86.093,19.89075228]
[1770474759590,20.38451402,86.143,86.093,19.89075228]
[1770474763502,20.38451402,86.14,86.093,19.89075228]
[1770474763796,20.38451402,86.138,86.093,19.89075228]
[1770474764001,20.38451402,86.136,86.093,19.89075228]
[1770474764502,20.38451402,86.134,86.078,19.89075228]
[1770474765091,20.38451402,86.132,86.078,19.89075228]
[1770474765600,20.38451402,86.129,86.078,19.89075228]
[1770474765800,20.38451402,86.127,86.078,19.89075228]
[1770474767005,20.38451402,86.125,86.064,19.89075228]
[1770474767199,20.38451402,86.123,86.064,19.89075228]
[1770474768194,20.38451402,86.121,86.064,19.89075228]
[1770474768899,20.38451402,86.119,86.064,19.89075228]
[1770474769703,20.38451402,86.119,86.072,10.4676]
[1770474770006,20.38451402,86.119,86.073,19.89075228]
[1770474772608,10.4606,86.13,86.073,19.89075228]
[1770474772808,20.38451402,86.128,86.073,19.89075228]
[1770474773010,20.38451402,86.126,86.083,19.89075228]
[1770474774513,20.38451402,86.15,86.093,19.89075228]
[1770474774711,20.38451402,86.148,86.093,19.89075228]